lending/lending_fUSD_20250224
["ID","MTS","AMOUNT","RATE_DAILY","PERIOD"]
[354263749,1740372638692,-643.65,0.00016518,2]
[354263750,1740372638702,-546.43388387,0.00016518,2]
[354263751,1740372638711,-500.0,0.00016518,2]
[354263752,1740372638720,-513.44462271,0.00016518,2]
[354263753,1740372638729,-501.81542077,0.00016518,2]
[354263754,1740372638739,-500.0,0.00016518,2]
[354263755,1740372638748,-500.0,0.00016518,2]
[354263756,1740372638758,-500.0,0.00016518,2]
[354263757,1740372638767,-366.32610354,0.00016518,2]
[354263758,1740372638776,-500.0,0.00016518,2]
[354263759,1740372638786,-646.03,0.00016518,2]
[354263760,1740372638795,-500.0,0.00016518,2]
[354263761,1740372638804,-579.43,0.00016518,2]
[354263762,1740372638813,-500.0,0.00016518,2]
[354263763,1740372638823,-761.33,0.00016518,2]
[354263764,1740372638832,-500.0,0.00016518,2]
[354263765,1740372638841,-500.0,0.00016518,2]
[354263766,1740372638851,-500.0,0.00016518,2]
[354263767,1740372638872,-500.0,0.00016518,2]
[354263768,1740372638881,-500.0,0.00016518,2]
[354263769,1740372638891,-500.0,0.00016518,2]
[354263770,1740372638900,-500.0,0.00016518,2]
[354263771,1740372638909,-500.0,0.00016518,2]
[354263772,1740372638920,-500.0,0.00016518,2]
[354263773,1740372638929,-500.0,0.00016518,2]
[354263774,1740372638938,-500.0,0.00016518,2]
[354263775,1740372638947,-500.0,0.00016518,2]
[354263776,1740372638957,-500.0,0.00016518,2]
[354263777,1740372638966,-500.0,0.00016518,2]
[354263778,1740372638975,-520.81124521,0.00016518,2]
[354263779,1740372638984,-500.0,0.00016518,2]
[354263780,1740372638993,-500.0,0.00016518,2]
[354263781,1740372639002,-500.0,0.00016518,2]
[354263782,1740372639012,-500.0,0.00016518,2]
[354263783,1740372639021,-500.0,0.00016518,2]
[354263784,1740372639030,-500.0,0.00016518,2]
[354263785,1740372639039,-500.0,0.00016518,2]
[354263786,1740372639048,-500.0,0.00016518,2]
[354263787,1740372639057,-500.0,0.00016518,2]
[354263788,1740372639067,-500.0,0.00016518,2]
[354263789,1740372639077,-1359.39,0.00016518,2]
[354263790,1740372639087,-500.0,0.00016518,2]
[354263791,1740372639097,-501.41020249,0.00016518,2]
[354263792,1740372639106,-500.0,0.00016518,2]
[354263793,1740372639115,-500.0,0.00016518,2]
[354263794,1740372639125,-500.0,0.00016518,2]
[354263795,1740372639134,-790.23,0.00016518,2]
[354263796,1740372639144,-500.0,0.00016518,2]
[354263797,1740372639153,-610.83,0.00016518,2]
[354263798,1740372639163,-500.0,0.00016518,2]
[354263799,1740372639172,-2890.37,0.00016518,2]
[354263800,1740372639182,-500.0,0.00016518,2]
[354263801,1740372639191,-1014.81,0.00016518,2]
[354263802,1740372639200,-500.0,0.00016518,2]
[354263803,1740372639209,-500.0,0.00016518,2]
[354263804,1740372639218,-500.0,0.00016518,2]
[354263806,1740372639227,-500.0,0.00016518,2]
[354263807,1740372639236,-500.0,0.00016518,2]
[354263809,1740372639245,-500.0,0.00016518,2]
[354263810,1740372639254,-1037.97,0.00016518,2]
[354263812,1740372639263,-500.0,0.00016518,2]
[354263814,1740372639271,-626.11,0.00016518,2]
[354263816,1740372639280,-500.0,0.00016518,2]
[354263818,1740372639289,-500.0,0.00016518,2]
[354263820,1740372639298,-1670.64,0.00016518,2]
[354263821,1740372639307,-500.0,0.00016518,2]
[354263822,1740372639315,-648.63,0.00016518,2]
[354263823,1740372639324,-879.5,0.00016518,2]
[354263824,1740372639333,-500.0,0.00016518,2]
[354263826,1740372639343,-500.0,0.00016518,2]
[354263827,1740372639352,-1389.46,0.00016518,2]
[354263828,1740372639361,-592.22,0.00016518,2]
[354263829,1740372639370,-500.0,0.00016518,2]
[354263830,1740372639379,-896.83,0.00016518,2]
[354263832,1740372639389,-722.14,0.00016518,2]
[354263833,1740372639398,-586.86,0.00016518,2]
[354263834,1740372639407,-500.0,0.00016518,2]
[354263835,1740372639416,-500.0,0.00016518,2]
[354263836,1740372639425,-648.88,0.00016518,2]
[354263837,1740372639434,-536.14,0.00016518,2]
[354263838,1740372639443,-500.0,0.00016518,2]
[354263839,1740372639452,-500.0,0.00016518,2]
[354263840,1740372639461,-944.04,0.00016518,2]
[354263841,1740372639469,-500.0,0.00016518,2]
[354263842,1740372639478,-500.0,0.00016518,2]
[354263843,1740372639487,-507.6,0.00016518,2]
[354263844,1740372639496,-500.0,0.00016518,2]
[354263845,1740372639505,-500.0,0.00016518,2]
[354263846,1740372639513,-658.09,0.00016518,2]
[354263847,1740372639522,-500.0,0.00016518,2]
[354263848,1740372639531,-500.0,0.00016518,2]
[354263849,1740372639540,-615.49,0.00016518,2]
[354263850,1740372639549,-1023.58,0.00016518,2]
[354263851,1740372639558,-500.0,0.00016518,2]
[354263852,1740372639567,-1391.25,0.00016518,2]
[354263853,1740372639576,-500.0,0.00016518,2]
[354263854,1740372639584,-500.0,0.00016518,2]
[354263855,1740372639593,-1225.64,0.00016518,2]
[354263856,1740372639602,-500.0,0.00016518,2]
[354263857,1740372639610,-500.0,0.00016518,2]
[354263858,1740372639619,-500.0,0.00016518,2]
[354263859,1740372639628,-955.38,0.00016518,2]
[354263860,1740372639637,-506.45480225,0.00016518,2]
[354263861,1740372639646,-1716.13,0.00016518,2]
[354263862,1740372639655,-500.0,0.00016518,2]
[354263863,1740372639663,-500.0,0.00016518,2]
[354263864,1740372639673,-4997.2,0.00016518,2]
[354263865,1740372639682,-500.0,0.00016518,2]
[354263866,1740372639691,-500.0,0.00016518,2]
[354263867,1740372639700,-500.0,0.00016518,2]
[354263868,1740372639709,-1277.82,0.00016518,2]
[354263869,1740372639718,-500.0,0.00016518,2]
[354263870,1740372639727,-500.0,0.00016518,2]
[354263871,1740372639738,-500.0,0.00016518,2]
[354263872,1740372639747,-500.0,0.00016518,2]
[354263873,1740372639756,-985.19,0.00016518,2]
[354263874,1740372639765,-1015.89,0.00016519,2]
[354263875,1740372639774,-579.48,0.00016519,2]
[354263876,1740372639783,-500.0,0.00016519,2]
[354263877,1740372639792,-500.0,0.00016519,2]
[354263878,1740372639801,-500.0,0.00016519,2]
[354263879,1740372639810,-500.0,0.00016519,2]
[354263880,1740372639818,-500.0,0.00016519,2]
[354263881,1740372639827,-500.0,0.00016519,2]
[354263882,1740372639836,-3546.69666353,0.00016527,2]
[354263883,1740372639845,-153.0,0.00016551,2]
[354263884,1740372639854,-153.0,0.00016551,2]
[354263885,1740372639866,-153.0,0.00016551,2]
[354263886,1740372639875,-153.0,0.00016551,2]
[354263887,1740372639885,-153.0,0.00016551,2]
[354263888,1740372639894,-153.0,0.00016551,2]
[354263889,1740372639904,-153.0,0.00016551,2]
[354263890,1740372639913,-153.0,0.00016551,2]
[354263891,1740372639922,-153.0,0.00016551,2]
[354263892,1740372639931,-153.0,0.00016551,2]
[354263893,1740372639942,-153.0,0.00016551,2]
[354263894,1740372639951,-153.0,0.00016551,2]
[354263895,1740372639960,-153.0,0.00016551,2]
[354263896,1740372639969,-153.0,0.00016551,2]
[354263897,1740372639978,-153.0,0.00016551,2]
[354263898,1740372639987,-153.0,0.00016551,2]
[354263899,1740372639996,-153.0,0.00016551,2]
[354263900,1740372640005,-153.0,0.00016551,2]
[354263901,1740372640014,-153.0,0.00016551,2]
[354263902,1740372640023,-153.0,0.00016551,2]
[354263903,1740372640032,-153.0,0.00016551,2]
[354263904,1740372640041,-153.0,0.00016551,2]
[354263905,1740372640050,-153.0,0.00016551,2]
[354263906,1740372640059,-153.0,0.00016551,2]
[354263907,1740372640068,-153.0,0.00016551,2]
[354263908,1740372640077,-153.0,0.00016551,2]
[354263909,1740372640086,-150.0,0.00016566,2]
[354263910,1740372640095,-150.0,0.00016566,2]
[354263911,1740372640104,-157.87651999,0.00016573,2]
[354263912,1740372640113,-500.0,0.00016573,2]
[354263913,1740372640122,-158.23693598,0.0001658,2]
[354263914,1740372640132,-500.0,0.00016597,2]
[354263915,1740372640142,-500.0,0.00016597,2]
[354263917,1740372640151,-578.85,0.00016597,2]
[354263919,1740372640160,-500.0,0.00016597,2]
[354263921,1740372640169,-500.0,0.00016597,2]
[354263923,1740372640178,-532.35,0.00016597,2]
[354263925,1740372640187,-500.0,0.00016597,2]
[354263927,1740372640197,-500.0,0.00016597,2]
[354263929,1740372640206,-500.0,0.00016597,2]
[354263931,1740372640215,-500.0,0.00016597,2]
[354263933,1740372640224,-500.0,0.00016597,2]
[354263935,1740372640233,-500.0,0.00016597,2]
[354263937,1740372640243,-500.0,0.00016597,2]
[354263939,1740372640251,-500.0,0.00016597,2]
[354263941,1740372640261,-500.0,0.00016597,2]
[354263943,1740372640270,-500.0,0.00016597,2]
[354263945,1740372640279,-500.0,0.00016597,2]
[354263947,1740372640288,-500.0,0.00016597,2]
[354263949,1740372640298,-500.0,0.00016597,2]
[354263951,1740372640307,-500.0,0.00016597,2]
[354263953,1740372640316,-500.0,0.00016597,2]
[354263955,1740372640325,-500.0,0.00016597,2]
[354263957,1740372640336,-500.0,0.00016597,2]
[354263959,1740372640345,-600.6,0.00016597,2]
[354263960,1740372640355,-500.0,0.00016597,2]
[354263961,1740372640364,-500.0,0.00016597,2]
[354263962,1740372640373,-500.0,0.00016597,2]
[354263963,1740372640383,-500.0,0.00016597,2]
[354263965,1740372640393,-500.0,0.00016597,2]
[354263967,1740372640402,-568.56,0.00016597,2]
[354263969,1740372640411,-500.0,0.00016597,2]
[354263971,1740372640419,-502.41839032,0.00016597,2]
[354263972,1740372640428,-513.0,0.00016597,2]
[354263974,1740372640440,-500.0,0.00016597,2]
[354263975,1740372640449,-500.0,0.00016597,2]
[354263976,1740372640458,-500.0,0.00016597,2]
[354263977,1740372640467,-500.0,0.00016597,2]
[354263978,1740372640475,-651.8,0.00016597,2]
[354263979,1740372640485,-500.0,0.00016597,2]
[354263980,1740372640494,-500.0,0.00016597,2]
[354263981,1740372640503,-500.0,0.00016597,2]
[354263982,1740372640511,-500.0,0.00016597,2]
[354263983,1740372640520,-643.68,0.00016597,2]
[354263984,1740372640529,-500.0,0.00016597,2]
[354263985,1740372640538,-500.0,0.00016597,2]
[354263986,1740372640548,-495.25336926,0.00016597,2]
[354263987,1740372640557,-500.0,0.00016597,2]
[354263988,1740372640566,-500.0,0.00016597,2]
[354263989,1740372640575,-500.0,0.00016597,2]
[354263990,1740372640584,-500.0,0.00016597,2]
[354263991,1740372640593,-500.0,0.00016597,2]
[354263992,1740372640602,-1189.51,0.00016597,2]
[354263993,1740372640611,-950.07,0.00016597,2]
[354263994,1740372640620,-567.4,0.00016597,2]
[354263995,1740372640629,-615.81,0.00016597,2]
[354263996,1740372640640,-500.0,0.00016597,2]
[354263997,1740372640649,-630.07,0.00016597,2]
[354263998,1740372640658,-500.0,0.00016597,2]
[354263999,1740372640667,-893.01,0.00016597,2]
[354264000,1740372640676,-500.0,0.00016597,2]
[354264001,1740372640685,-1259.67,0.00016597,2]
[354264002,1740372640694,-976.99,0.00016597,2]
[354264003,1740372640703,-616.78,0.00016597,2]
[354264004,1740372640712,-500.0,0.00016597,2]
[354264005,1740372640720,-503.28,0.00016597,2]
[354264006,1740372640729,-500.0,0.00016597,2]
[354264007,1740372640738,-531.2,0.00016597,2]
[354264008,1740372640747,-616.18,0.00016597,2]
[354264009,1740372640758,-500.0,0.00016597,2]
[354264010,1740372640767,-500.0,0.00016597,2]
[354264011,1740372640776,-883.49,0.00016597,2]
[354264012,1740372640785,-500.0,0.00016597,2]
[354264013,1740372640794,-500.0,0.00016599,2]
[354264014,1740372640803,-626.17,0.00016599,2]
[354264015,1740372640812,-1425.72,0.00016599,2]
[354264016,1740372640821,-5633.92,0.00016599,2]
[354264017,1740372640830,-500.0,0.00016599,2]
[354264018,1740372640839,-651.83,0.00016599,2]
[354264019,1740372640849,-1223.98,0.00016599,2]
[354264020,1740372640858,-1525.05,0.00016599,2]
[354264021,1740372640872,-1000.0,0.00016599,2]
[354264022,1740372640882,-1383.26,0.00016599,2]
[354264023,1740372640891,-1234.09,0.00016599,2]
[354264024,1740372640900,-999.0,0.00016599,2]
[354264025,1740372640911,-1452.49,0.00016599,2]
[354264026,1740372640920,-714.04,0.00016599,2]
[354264027,1740372640929,-1791.73,0.00016599,2]
[354264028,1740372640938,-500.0,0.00016599,2]
[354264029,1740372640947,-500.0,0.00016599,2]
[354264030,1740372640956,-500.0,0.00016599,2]
[354264031,1740372640965,-500.0,0.00016599,2]
[354264032,1740372640974,-500.0,0.00016599,2]
[354264033,1740372640983,-500.0,0.00016599,2]
[354264034,1740372640991,-1147.3034064,0.00016599,5]
[354264035,1740372641001,-219058.94128563,0.000166,5]
[354264036,1740372641016,-740.11120667,0.000166,5]
[354264037,1740372641027,-1110.58443965,0.000166,5]
[354264038,1740372641037,-318.2462475,0.000166,5]
[354264039,1740372641310,-818.91995239,0.00016517,2]
[354264040,1740372641331,-271.6,0.00016517,2]
[354264041,1740372641347,-270.38004761,0.00016517,2]
[354264042,1740372641356,-278.43065255,0.00016517,2]
[354264043,1740372641367,-221.56934745,0.00016517,2]
[354264044,1740372641376,-103.92984288,0.00016518,2]
[354264045,1740372641388,-286.083,0.00016518,2]
[354264046,1740372641399,-179.53715712,0.00016518,2]
[354264047,1740372641407,-75.92434288,0.000166,5]
[354264061,1740372642534,-513.16947093,0.00016517,2]
[354264063,1740372642544,-5.05808923,0.00016518,2]
[354264066,1740372642591,-494.94191077,0.00016518,2]
[354264067,1740372642601,-3003.18894914,0.00016527,2]
[354264068,1740372642610,-20356.8691401,0.000166,5]
[354264069,1740372642621,-344.94220916,0.000166,5]
[354264070,1740372642648,-500.0,0.00016518,2]
[354264071,1740372642658,-1961.69996976,0.000166,5]
[354264072,1740372642704,-494.48479983,0.000166,5]
[354264087,1740372645460,-1302.75,0.00016517,2]
[354264088,1740372645470,-500.0,0.00016517,2]
[354264089,1740372645479,-500.0,0.00016517,2]
[354264090,1740372645488,-500.0,0.00016517,2]
[354264091,1740372645498,-500.0,0.00016517,2]
[354264092,1740372645507,-465.59109889,0.00016517,2]
[354264093,1740372645518,-34.40890111,0.00016517,2]
[354264094,1740372645527,-500.0,0.00016597,2]
[354264095,1740372645536,-2165.59109889,0.00016599,2]
[354264096,1740372645626,-775.72927934,0.00016599,2]
[354264097,1740372645791,-1058.67962177,0.00016599,2]
[354264098,1740372645800,-67938.00303877,0.000166,5]
[354264099,1740372645847,-307.525,0.000166,5]
[354264100,1740372645904,-7321.95849467,0.000166,5]
[354264126,1740373167218,152.5,8.767e-05,2]
[354264127,1740373213949,200.0,8.723e-05,2]
[354264133,1740373831703,-288.169968,0.00010958,2]
[354264134,1740373831713,-208.322645,0.00010958,2]
[354264135,1740373831723,-288.169968,0.00011041,2]
[354264136,1740373831732,-208.322645,0.00011041,2]
[354264137,1740373831741,-182.89395777,0.00011105,2]
[354264138,1740373831750,-81.12981632,0.00011123,2]
[354264139,1740373831762,-207.04015168,0.00011123,2]
[354264140,1740373831771,-208.322645,0.00011123,2]
[354264141,1740373831780,-288.169968,0.00011205,2]
[354264142,1740373831789,-208.322645,0.00011205,2]
[354264143,1740373831798,-288.169968,0.00011287,2]
[354264144,1740373831807,-208.322645,0.00011287,2]
[354264145,1740373831817,-288.169968,0.00011369,2]
[354264146,1740373831826,-208.322645,0.00011369,2]
[354264147,1740373831835,-1097.20585446,0.00011812,2]
[354264148,1740373831852,-1402.79414554,0.00011812,2]
[354264149,1740373831861,-167.59,0.00011837,2]
[354264150,1740373831870,-150.0,0.00012054,2]
[354264151,1740373831879,-277.71716898,0.00012367,2]
[354264152,1740373831901,-22.28283102,0.00012367,2]
[354264153,1740373831910,-1461.34,0.00012368,2]
[354264154,1740373831919,-550.0,0.00013,2]
[354264155,1740373831929,-5550.0,0.000132,3]
[354264156,1740373831938,-150.0,0.00013316,2]
[354264157,1740373831947,-5550.0,0.000135,5]
[354264158,1740373831955,-420.0,0.00013571,2]
[354264159,1740373831964,-167.66,0.00014059,2]
[354264160,1740373831973,-23900.0,0.00014091,2]
[354264161,1740373831982,-179.27,0.00014112,2]
[354264162,1740373831991,-300.0,0.00014212,2]
[354264163,1740373832000,-250.0,0.0001425,2]
[354264164,1740373832009,-500.0,0.00014297,2]
[354264165,1740373832018,-3218.72,0.00014415,2]
[354264166,1740373832027,-1461.34,0.00014632,2]
[354264167,1740373832036,-609.87,0.00014654,2]
[354264168,1740373832045,-1500.0,0.00014656,2]
[354264169,1740373832054,-200.0,0.00014726,2]
[354264170,1740373832063,-1852.42,0.00014819,2]
[354264171,1740373832073,-150.0,0.00014834,2]
[354264172,1740373832081,-204.5,0.00014834,2]
[354264173,1740373832090,-480.0,0.00014893,2]
[354264174,1740373832099,-625.84,0.00014894,2]
[354264175,1740373832109,-1000.0,0.00014901,2]
[354264176,1740373832118,-601.58607981,0.00014986,2]
[354264177,1740373832127,-600.0,0.00015,2]
[354264178,1740373832136,-9453.65,0.00015083,2]
[354264179,1740373832145,-150.0,0.00015086,2]
[354264180,1740373832156,-150.0,0.00015214,2]
[354264181,1740373832165,-150.0,0.00015214,2]
[354264182,1740373832174,-150.0,0.00015214,2]
[354264183,1740373832183,-150.0,0.00015214,2]
[354264185,1740373832192,-2000.0,0.00015266,2]
[354264187,1740373832201,-1161.24,0.00015383,2]
[354264189,1740373832211,-2500.0,0.00015449,2]
[354264191,1740373832220,-182.89395776,0.00015462,2]
[354264193,1740373832230,-7164.06,0.00015549,2]
[354264195,1740373832239,-179.81,0.00015562,2]
[354264197,1740373832251,-167.45,0.00015591,2]
[354264199,1740373832261,-1167.48,0.00015675,2]
[354264201,1740373832270,-965.46,0.00015753,2]
[354264203,1740373832279,-416.341,0.00015904,2]
[354264205,1740373832288,-445.162,0.00015904,2]
[354264206,1740373832297,-1507.205,0.00015904,2]
[354264208,1740373832306,-150.0,0.00015904,2]
[354264210,1740373832315,-1110.0,0.00015904,2]
[354264213,1740373832325,-195.0,0.00015962,2]
[354264216,1740373832334,-63130.23512842,0.00016,2]
[354264218,1740373832344,-1011.98,0.0001603,2]
[354264220,1740373832354,-150.0,0.00016059,2]
[354264223,1740373832364,-1046.44359713,0.00016268,2]
[354264225,1740373832373,-1000.0,0.00016416,2]
[354264227,1740373832383,-2837.35733086,0.00016416,2]
[354264228,1740373832392,-2402.55115933,0.00016416,2]
[354264231,1740373832402,-192.6,0.00016438,2]
[354264233,1740373832412,-1027.89,0.00016438,2]
[354264234,1740373832422,-316.7,0.00016438,2]
[354264237,1740373832431,-150.0,0.00016438,2]
[354264238,1740373832440,-878.58,0.00016438,2]
[354264240,1740373832449,-160.16152089,0.000165,2]
[354264242,1740373832458,-153.08145219,0.000165,2]
[354264244,1740373832467,-200.0,0.000165,6]
[354264246,1740373832476,-535.2,0.00016506,2]
[354264248,1740373832485,-908.06,0.00016515,2]
[354264250,1740373832494,-2047.5,0.00016515,2]
[354264252,1740373832503,-920.92,0.00016515,2]
[354264254,1740373832512,-1177.91,0.00016515,2]
[354264256,1740373832521,-698.15,0.00016515,2]
[354264258,1740373832530,-1635.26,0.00016515,2]
[354264260,1740373832539,-1017.04,0.00016515,2]
[354264262,1740373832549,-1335.73,0.00016515,2]
[354264264,1740373832558,-1188.3,0.00016515,2]
[354264266,1740373832569,-553.97,0.00016515,2]
[354264268,1740373832578,-581.42,0.00016515,2]
[354264270,1740373832587,-684.47,0.00016515,2]
[354264272,1740373832596,-500.0,0.00016515,2]
[354264274,1740373832605,-1448.79,0.00016515,2]
[354264276,1740373832614,-843.21,0.00016515,2]
[354264278,1740373832623,-881.47,0.00016515,2]
[354264280,1740373832632,-774.79,0.00016515,2]
[354264282,1740373832641,-1081.05,0.00016515,2]
[354264284,1740373832650,-1469.08,0.00016515,2]
[354264286,1740373832662,-1391.19,0.00016515,2]
[354264288,1740373832671,-867.24,0.00016515,2]
[354264290,1740373832680,-909.44,0.00016515,2]
[354264292,1740373832690,-1151.84,0.00016515,2]
[354264294,1740373832699,-1455.63,0.00016515,2]
[354264296,1740373832709,-500.0,0.00016515,2]
[354264298,1740373832718,-500.0,0.00016515,2]
[354264300,1740373832727,-719.17,0.00016515,2]
[354264302,1740373832736,-500.0,0.00016515,2]
[354264304,1740373832745,-1573.55,0.00016515,2]
[354264306,1740373832755,-1581.01,0.00016515,2]
[354264308,1740373832764,-229.06945236,0.00016515,2]
[354264310,1740373832773,-65616.82685772,0.00016516,2]
[354264312,1740373832783,-287.68365306,0.00016516,2]
[354264314,1740373832792,-500.0,0.00016516,2]
[354264316,1740373832802,-500.0,0.00016516,2]
[354264318,1740373832811,-500.0,0.00016516,2]
[354264320,1740373832821,-500.0,0.00016516,2]
[354264322,1740373832830,-567.13,0.00016516,2]
[354264324,1740373832839,-500.0,0.00016516,2]
[354264326,1740373832848,-500.0,0.00016516,2]
[354264328,1740373832858,-500.0,0.00016516,2]
[354264330,1740373832867,-1359.07,0.00016516,2]
[354264332,1740373832876,-501.25010667,0.00016516,2]
[354264334,1740373832885,-500.0,0.00016516,2]
[354264336,1740373832894,-500.0,0.00016516,2]
[354264338,1740373832904,-500.0,0.00016516,2]
[354264340,1740373832913,-500.0,0.00016516,2]
[354264342,1740373832922,-500.0,0.00016516,2]
[354264344,1740373832931,-501.30932421,0.00016516,2]
[354264346,1740373832940,-606.056465,0.00016516,2]
[354264348,1740373832949,-500.0,0.00016516,2]
[354264350,1740373832958,-501.35194059,0.00016516,2]
[354264352,1740373832967,-505.86641007,0.00016516,2]
[354264354,1740373832976,-641.66,0.00016516,2]
[354264356,1740373832986,-500.0,0.00016516,2]
[354264358,1740373832994,-500.0,0.00016516,2]
[354264360,1740373833003,-500.0,0.00016516,2]
[354264362,1740373833013,-500.0,0.00016516,2]
[354264364,1740373833022,-500.0,0.00016516,2]
[354264366,1740373833032,-500.0,0.00016516,2]
[354264368,1740373833042,-500.0,0.00016516,2]
[354264370,1740373833051,-500.0,0.00016516,2]
[354264372,1740373833059,-500.0,0.00016516,2]
[354264374,1740373833069,-500.0,0.00016516,2]
[354264376,1740373833079,-500.0,0.00016516,2]
[354264378,1740373833088,-500.0,0.00016516,2]
[354264380,1740373833097,-500.0,0.00016516,2]
[354264382,1740373833106,-500.0,0.00016516,2]
[354264383,1740373833115,-500.0,0.00016516,2]
[354264385,1740373833125,-644.99,0.00016516,2]
[354264388,1740373833134,-500.0,0.00016516,2]
[354264390,1740373833144,-500.0,0.00016516,2]
[354264391,1740373833153,-500.0,0.00016516,2]
[354264394,1740373833163,-500.0,0.00016516,2]
[354264395,1740373833172,-500.0,0.00016516,2]
[354264396,1740373833181,-502.87109302,0.00016516,2]
[354264397,1740373833191,-500.0,0.00016516,2]
[354264398,1740373833200,-503.46935905,0.00016516,2]
[354264399,1740373833210,-500.0,0.00016516,2]
[354264400,1740373833435,-530.43,0.00016516,2]
[354264401,1740373833445,-712.7,0.00016516,2]
[354264402,1740373833455,-500.0,0.00016516,2]
[354264403,1740373833464,-500.0,0.00016516,2]
[354264404,1740373833474,-500.0,0.00016516,2]
[354264405,1740373833483,-500.0,0.00016516,2]
[354264406,1740373833493,-500.0,0.00016516,2]
[354264407,1740373833502,-500.0,0.00016516,2]
[354264408,1740373833511,-526.46539368,0.00016516,2]
[354264409,1740373833519,-500.81906217,0.00016516,2]
[354264410,1740373833529,-646.02,0.00016516,2]
[354264411,1740373833538,-500.0,0.00016516,2]
[354264412,1740373833547,-500.0,0.00016516,2]
[354264413,1740373833556,-501.25629161,0.00016516,2]
[354264414,1740373833565,-502.48588513,0.00016516,2]
[354264415,1740373833574,-500.0,0.00016516,2]
[354264416,1740373833584,-500.0,0.00016516,2]
[354264417,1740373833593,-500.0,0.00016516,2]
[354264418,1740373833602,-500.0,0.00016516,2]
[354264419,1740373833612,-500.0,0.00016516,2]
[354264420,1740373833621,-500.0,0.00016516,2]
[354264421,1740373833631,-500.0,0.00016516,2]
[354264422,1740373833640,-500.0,0.00016516,2]
[354264423,1740373833649,-500.0,0.00016516,2]
[354264424,1740373833661,-200.33,0.00016516,2]
[354264425,1740373833671,-500.0,0.00016516,2]
[354264426,1740373833681,-500.0,0.00016516,2]
[354264427,1740373833691,-500.0,0.00016516,2]
[354264428,1740373833701,-502.93071308,0.00016516,2]
[354264429,1740373833711,-500.0,0.00016516,2]
[354264430,1740373833720,-500.0,0.00016516,2]
[354264431,1740373833730,-500.0,0.00016516,2]
[354264432,1740373833739,-500.0,0.00016516,2]
[354264433,1740373833749,-527.06835557,0.00016516,2]
[354264434,1740373833758,-539.82,0.00016516,2]
[354264435,1740373833767,-500.0,0.00016516,2]
[354264436,1740373833777,-500.0,0.00016516,2]
[354264437,1740373833786,-504.06750884,0.00016516,2]
[354264438,1740373833796,-500.0,0.00016516,2]
[354264439,1740373833806,-593.48,0.00016516,2]
[354264440,1740373833816,-500.0,0.00016516,2]
[354264441,1740373833825,-207.11,0.00016516,2]
[354264442,1740373833835,-446.29589549,0.00016516,2]
[354264443,1740373833844,-500.0,0.00016516,2]
[354264444,1740373833854,-500.0,0.00016516,2]
[354264445,1740373833863,-639.62,0.00016516,2]
[354264446,1740373833872,-500.0,0.00016516,2]
[354264447,1740373833882,-500.0,0.00016516,2]
[354264448,1740373833892,-588.23,0.00016516,2]
[354264449,1740373833901,-524.96,0.00016516,2]
[354264450,1740373833911,-500.0,0.00016516,2]